Workbook

Sheet Indhold
B3: Den samfundsfaglige Regnemaskine
B5: Indhold | C5: Relevans
B6: 1. Vandret procentuering af krydstabel | C6: Ny ordning
B7: 2. Lodret procentuering af krydstabel | C7: Ny ordning
B8: 3. Vandret procentuering af tidsserie | C8: Ny ordning
B9: 4. Lodret procentuering af tidsserie | C9: Ny ordning
B10: 5. Vandret Indekstal på tidsserie | C10: Ny ordning
B11: 6. Lodret Indekstal på tidsserie | C11: Ny ordning
B12: 7. Vandret vækstrate | C12: Ny ordning
B13: 8. Lodret vækstrate | C13: Ny ordning
B14: 9. Stikprøveusikkerhed (andele) | C14: Ny ordning
B15: 10. Stikprøveusikkerhed (Måling vs. Valg) | C15: Ny ordning
B16: 11. Regressionsanalyse | C16: Ny ordning
B17: 12. Regressionssimulator | C17: Ny ordning

Sheet Vandret procentuering
A1: Vandret procentuering af krydstabel (Bruges når den uafhængige variabel er placeret i forspalten se illustration). | U1: Tilbage til hovedmenuen
A3: Tabel 1: Absolutte tal
C5: Afhængig variabel
C6: Kolonne 1 | D6: Kolonne 2 | E6: Kolonne 3 | F6: Kolonne 4 | G6: Kolonne 5 | H6: Kolonne 6 | I6: Kolonne 7 | J6: Kolonne 8 | K6: Kolonne 9 | L6: Kolonne 10 | M6: Kolonne 11 | N6: Kolonne 12 | O6: Kolonne 13 | P6: Kolonne 14 | Q6: Kolonne 15 | R6: Kolonne 16 | S6: I alt
A7: Uafhængig variabel | B7: Række 1 | S7: =SUM(C7:R7) -> 0
B8: Række 2 | S8: =SUM(C8:R8) -> 0
B9: Række 3 | S9: 0
B10: Række 4 | S10: 0
B11: Række 5 | S11: 0
B12: Række 6 | S12: 0
B13: Række 7 | S13: 0
B14: Række 8 | S14: 0
B15: Række 9 | S15: 0
B16: Række 10 | S16: 0
B17: Række 11 | S17: 0
B18: Række 12 | S18: 0
B19: Række 13 | S19: 0
B20: Række 14 | S20: 0
B21: Række 15 | S21: 0
B22: Række 16 | S22: 0
B23: Række 17 | S23: 0
B24: Række 18 | S24: 0
B25: Række 19 | S25: 0
B26: Række 20 | S26: 0
A30: Tabel 2: Rækkeprocenter
C32: Afhængig variabel
C33: Kolonne 1 | D33: Kolonne 2 | E33: Kolonne 3 | F33: Kolonne 4 | G33: Kolonne 5 | H33: Kolonne 6 | I33: Kolonne 7 | J33: Kolonne 8 | K33: Kolonne 9 | L33: Kolonne 10 | M33: Kolonne 11 | N33: Kolonne 12 | O33: Kolonne 13 | P33: Kolonne 14 | Q33: Kolonne 15 | R33: Kolonne 16 | S33: I alt
A34: Uafhængig variabel | B34: Række 1 | C34: =IF(C7="","",C7/$S7*100) ->  | D34: =IF(D7="","",D7/$S7*100) ->  | S34: =SUM(C34:R34) -> 0
B35: Række 2 | C35: =IF(C8="","",C8/$S8*100) ->  | S35: =SUM(C35:R35) -> 0
B36: Række 3 | C36: =IF(C9="","",C9/$S9*100) ->  | S36: 0
B37: Række 4 | C37: =IF(C10="","",C10/$S10*100) ->  | S37: 0
B38: Række 5 | C38: =IF(C11="","",C11/$S11*100) ->  | S38: 0
B39: Række 6 | C39: =IF(C12="","",C12/$S12*100) ->  | S39: 0
B40: Række 7 | C40: =IF(C13="","",C13/$S13*100) ->  | S40: 0
B41: Række 8 | C41: =IF(C14="","",C14/$S14*100) ->  | S41: 0
B42: Række 9 | C42: =IF(C15="","",C15/$S15*100) ->  | S42: 0
B43: Række 10 | C43: =IF(C16="","",C16/$S16*100) ->  | S43: 0
B44: Række 11 | C44: =IF(C17="","",C17/$S17*100) ->  | S44: 0
B45: Række 12 | C45: =IF(C18="","",C18/$S18*100) ->  | S45: 0
B46: Række 13 | C46: =IF(C19="","",C19/$S19*100) ->  | S46: 0
B47: Række 14 | C47: =IF(C20="","",C20/$S20*100) ->  | S47: 0
B48: Række 15 | C48: =IF(C21="","",C21/$S21*100) ->  | S48: 0
B49: Række 16 | C49: =IF(C22="","",C22/$S22*100) ->  | S49: 0
B50: Række 17 | C50: =IF(C23="","",C23/$S23*100) ->  | S50: 0
B51: Række 18 | C51: =IF(C24="","",C24/$S24*100) ->  | S51: 0
B52: Række 19 | C52: =IF(C25="","",C25/$S25*100) ->  | S52: 0
B53: Række 20 | C53: =IF(C26="","",C26/$S26*100) ->  | S53: 0

Sheet Lodret procentuering
A1: Lodret procentuering af krydstabel (Bruges når den uafhængige variabel er placeret i hovedspalten se illustration).
K2: Tilbage til hovedmenuen
A4: Tabel 1: Absolutte tal
C6: Uafhængig variabel
C7: Kolonne 1 | D7: Kolonne 2 | E7: Kolonne 3 | F7: Kolonne 4 | G7: Kolonne 5 | H7: Kolonne 6 | I7: Kolonne 7 | J7: Kolonne 8 | K7: Kolonne 9 | L7: Kolonne 10 | M7: Kolonne 11 | N7: Kolonne 12 | O7: Kolonne 13 | P7: Kolonne 14 | Q7: Kolonne 15 | R7: Kolonne 16
A8: Afhængig variabel | B8: Række 1
B9: Række 2
B10: Række 3
B11: Række 4
B12: Række 5
B13: Række 6
B14: Række 7
B15: Række 8
B16: Række 9
B17: Række 10
B18: Række 11
B19: Række 12
B20: Række 13
B21: Række 14
B22: Række 15
B23: Række 16
B24: Række 17
B25: Række 18
B26: Række 19
B27: Række 20
B28: I alt | C28: =SUM(C8:C27) -> 0 | D28: =SUM(D8:D27) -> 0 | E28: 0 | F28: 0 | G28: 0 | H28: 0 | I28: 0 | J28: =SUM(J8:J27) -> 0 | K28: 0 | L28: 0 | M28: 0 | N28: 0 | O28: 0 | P28: 0 | Q28: 0 | R28: 0
A31: Tabel 2: Rækkeprocenter
C33: Uafhængig variabel
C34: Kolonne 1 | D34: Kolonne 2 | E34: Kolonne 3 | F34: Kolonne 4 | G34: Kolonne 5 | H34: Kolonne 6 | I34: Kolonne 7 | J34: Kolonne 8 | K34: Kolonne 9 | L34: Kolonne 10 | M34: Kolonne 11 | N34: Kolonne 12 | O34: Kolonne 13 | P34: Kolonne 14 | Q34: Kolonne 15 | R34: Kolonne 16
A35: Afhængig variabel | B35: Række 1 | C35: =IF(C8="","",C8/C$28*100) ->  | D35: =IF(D8="","",D8/D$28*100) -> 
B36: Række 2 | C36: =IF(C9="","",C9/C$28*100) -> 
B37: Række 3 | C37: =IF(C10="","",C10/C$28*100) -> 
B38: Række 4 | C38: =IF(C11="","",C11/C$28*100) -> 
B39: Række 5 | C39: =IF(C12="","",C12/C$28*100) -> 
B40: Række 6 | C40: =IF(C13="","",C13/C$28*100) -> 
B41: Række 7 | C41: =IF(C14="","",C14/C$28*100) -> 
B42: Række 8 | C42: =IF(C15="","",C15/C$28*100) -> 
B43: Række 9 | C43: =IF(C16="","",C16/C$28*100) -> 
B44: Række 10 | C44: =IF(C17="","",C17/C$28*100) -> 
B45: Række 11 | C45: =IF(C18="","",C18/C$28*100) -> 
B46: Række 12 | C46: =IF(C19="","",C19/C$28*100) -> 
B47: Række 13 | C47: =IF(C20="","",C20/C$28*100) -> 
B48: Række 14 | C48: =IF(C21="","",C21/C$28*100) -> 
B49: Række 15 | C49: =IF(C22="","",C22/C$28*100) -> 
B50: Række 16 | C50: =IF(C23="","",C23/C$28*100) -> 
B51: Række 17 | C51: =IF(C24="","",C24/C$28*100) -> 
B52: Række 18 | C52: =IF(C25="","",C25/C$28*100) -> 
B53: Række 19 | C53: =IF(C26="","",C26/C$28*100) -> 
B54: Række 20 | C54: =IF(C27="","",C27/C$28*100) -> 
B55: I alt | C55: =SUM(C35:C54) -> 0 | D55: =SUM(D35:D54) -> 0 | E55: 0 | F55: 0 | G55: 0 | H55: 0 | I55: 0 | J55: 0 | K55: 0 | L55: 0 | M55: 0 | N55: 0 | O55: 0 | P55: 0 | Q55: 0 | R55: 0

Sheet Vandret procentuering (2)
A1: Vandret procentuering af tidsserie
A3: Begyndelsesår | B3: 1 | K3: Tilbage til hovedmenuen
A5: Tabel 1: Absolutte tal
C7: Afhængig variabel
C8: Kolonne 1 | D8: Kolonne 2 | E8: Kolonne 3 | F8: Kolonne 4 | G8: Kolonne 5 | H8: Kolonne 6 | I8: Kolonne 7 | J8: Kolonne 8 | K8: Kolonne 9 | L8: Kolonne 10 | M8: Kolonne 11 | N8: Kolonne 12 | O8: Kolonne 13 | P8: Kolonne 14 | Q8: Kolonne 15 | R8: Kolonne 16 | S8: I alt
A9: Tid - Årstal | B9: =+$B$3 -> 1 | S9: =SUM(C9:R9) -> 0
B10: =+B9+1 -> 2 | S10: =SUM(C10:R10) -> 0
B11: =+B10+1 -> 3 | S11: 0
B12: 4 | S12: 0
B13: 5 | S13: 0
B14: 6 | S14: 0
B15: 7 | S15: 0
B16: 8 | S16: 0
B17: 9 | S17: 0
B18: 10 | S18: 0
B19: 11 | S19: 0
B20: 12 | S20: 0
B21: 13 | S21: 0
B22: 14 | S22: 0
B23: 15 | S23: 0
B24: 16 | S24: 0
B25: 17 | S25: 0
B26: 18 | S26: 0
B27: 19 | S27: 0
B28: 20 | S28: 0
B29: 21 | S29: 0
A32: Tabel 2: Rækkeprocenter
C34: Afhængig variabel
C35: Kolonne 1 | D35: Kolonne 2 | E35: Kolonne 3 | F35: Kolonne 4 | G35: Kolonne 5 | H35: Kolonne 6 | I35: Kolonne 7 | J35: Kolonne 8 | K35: Kolonne 9 | L35: Kolonne 10 | M35: Kolonne 11 | N35: Kolonne 12 | O35: Kolonne 13 | P35: Kolonne 14 | Q35: Kolonne 15 | R35: Kolonne 16 | S35: I alt
A36: Tid - Årstal | B36: =+B9 -> 1 | C36: =IF(C9="","",C9/$S9*100) ->  | D36: =IF(D9="","",D9/$S9*100) ->  | S36: =SUM(C36:R36) -> 0
B37: 2 | C37: =IF(C10="","",C10/$S10*100) ->  | S37: =SUM(C37:R37) -> 0
B38: 3 | C38: =IF(C11="","",C11/$S11*100) ->  | S38: 0
B39: 4 | C39: =IF(C12="","",C12/$S12*100) ->  | S39: 0
B40: 5 | C40: =IF(C13="","",C13/$S13*100) ->  | S40: 0
B41: 6 | C41: =IF(C14="","",C14/$S14*100) ->  | S41: 0
B42: 7 | C42: =IF(C15="","",C15/$S15*100) ->  | S42: 0
B43: 8 | C43: =IF(C16="","",C16/$S16*100) ->  | S43: 0
B44: 9 | C44: =IF(C17="","",C17/$S17*100) ->  | S44: 0
B45: 10 | C45: =IF(C18="","",C18/$S18*100) ->  | S45: 0
B46: 11 | C46: =IF(C19="","",C19/$S19*100) ->  | S46: 0
B47: =+B20 -> 12 | C47: =IF(C20="","",C20/$S20*100) ->  | S47: 0
B48: 13 | C48: =IF(C21="","",C21/$S21*100) ->  | S48: 0
B49: 14 | C49: =IF(C22="","",C22/$S22*100) ->  | S49: 0
B50: 15 | C50: =IF(C23="","",C23/$S23*100) ->  | S50: 0
B51: 16 | C51: =IF(C24="","",C24/$S24*100) ->  | S51: 0
B52: 17 | C52: =IF(C25="","",C25/$S25*100) ->  | S52: 0
B53: 18 | C53: =IF(C26="","",C26/$S26*100) ->  | S53: 0
B54: 19 | C54: =IF(C27="","",C27/$S27*100) ->  | S54: 0
B55: 20 | C55: =IF(C28="","",C28/$S28*100) ->  | S55: 0
B56: 21 | C56: =IF(C29="","",C29/$S29*100) ->  | S56: 0

Sheet Lodret procentuering (2)
A1: Lodret procentuering af tidsserie
J2: Tilbage til hovedmenuen
A3: Begyndelsesår
A5: Tabel 1: Absolutte tal
C7: Tid - Årstal
C8: =+$B$3 -> 0 | D8: =+C8+1 -> 1 | E8: =+D8+1 -> 2 | F8: 3 | G8: 4 | H8: 5 | I8: 6 | J8: 7 | K8: 8 | L8: 9 | M8: 10 | N8: 11 | O8: 12 | P8: =+O8+1 -> 13 | Q8: =+P8+1 -> 14 | R8: =+Q8+1 -> 15 | S8: =+R8+1 -> 16
A9: Afhængig variabel | B9: Række 1
B10: Række 2
B11: Række 3
B12: Række 4
B13: Række 5
B14: Række 6
B15: Række 7
B16: Række 8
B17: Række 9
B18: Række 10
B19: Række 11
B20: Række 12
B21: Række 13
B22: Række 14
B23: Række 15
B24: Række 16
B25: Række 17
B26: Række 18
B27: Række 19
B28: Række 20
B29: I alt | C29: =SUM(C9:C28) -> 0 | D29: =SUM(D9:D28) -> 0 | E29: 0 | F29: 0 | G29: 0 | H29: 0 | I29: 0 | J29: 0 | K29: 0 | L29: 0 | M29: 0 | N29: 0 | O29: 0 | P29: 0 | Q29: 0 | R29: 0 | S29: 0
A32: Tabel 2: Kolonneprocenter
C34: Tid - Årstal
C35: =+C8 -> 0 | D35: 1 | E35: 2 | F35: 3 | G35: 4 | H35: 5 | I35: 6 | J35: 7 | K35: 8 | L35: 9 | M35: 10 | N35: 11 | O35: 12 | P35: 13 | Q35: 14 | R35: 15 | S35: 16
A36: Afhængig variabel | B36: Række 1 | C36: =IF(C9="","",C9/C$29*100) ->  | D36: =IF(D9="","",D9/D$29*100) -> 
B37: Række 2 | C37: =IF(C10="","",C10/C$29*100) -> 
B38: Række 3 | C38: =IF(C11="","",C11/C$29*100) -> 
B39: Række 4 | C39: =IF(C12="","",C12/C$29*100) -> 
B40: Række 5 | C40: =IF(C13="","",C13/C$29*100) -> 
B41: Række 6 | C41: =IF(C14="","",C14/C$29*100) -> 
B42: Række 7 | C42: =IF(C15="","",C15/C$29*100) -> 
B43: Række 8 | C43: =IF(C16="","",C16/C$29*100) -> 
B44: Række 9 | C44: =IF(C17="","",C17/C$29*100) -> 
B45: Række 10 | C45: =IF(C18="","",C18/C$29*100) -> 
B46: Række 11 | C46: =IF(C19="","",C19/C$29*100) -> 
B47: Række 12 | C47: =IF(C20="","",C20/C$29*100) -> 
B48: Række 13 | C48: =IF(C21="","",C21/C$29*100) -> 
B49: Række 14 | C49: =IF(C22="","",C22/C$29*100) -> 
B50: Række 15 | C50: =IF(C23="","",C23/C$29*100) -> 
B51: Række 16 | C51: =IF(C24="","",C24/C$29*100) -> 
B52: Række 17 | C52: =IF(C25="","",C25/C$29*100) -> 
B53: Række 18 | C53: =IF(C26="","",C26/C$29*100) -> 
B54: Række 19 | C54: =IF(C27="","",C27/C$29*100) -> 
B55: Række 20 | C55: =IF(C28="","",C28/C$29*100) -> 
B56: I alt | C56: =SUM(C36:C55) -> 0 | D56: =SUM(D36:D55) -> 0 | E56: 0 | F56: 0 | G56: 0 | H56: 0 | I56: 0 | J56: 0 | K56: 0 | L56: 0 | M56: 0 | N56: 0 | O56: 0 | P56: 0 | Q56: 0 | R56: 0 | S56: 0

Sheet Vandret Indekstal
A1: Vandret indekstal på tidsserie
J2: Tilbage til hovedmenuen
A3: Tabel 1: Absolutte tal
A5: Begyndelsesår
C6: Tid - År
C7: =+$B$5 -> 0 | D7: =+C7+1 -> 1 | E7: =+D7+1 -> 2 | F7: 3 | G7: 4 | H7: 5 | I7: 6 | J7: 7 | K7: 8 | L7: 9 | M7: =+L7+1 -> 10 | N7: =+M7+1 -> 11 | O7: =+N7+1 -> 12 | P7: =+O7+1 -> 13 | Q7: =+P7+1 -> 14 | R7: =+Q7+1 -> 15 | S7: =+R7+1 -> 16
A8: Afhængig variabel | B8: Række 1 | C8: 894 | D8: 914 | E8: 908 | F8: 890 | G8: 882 | H8: 883 | I8: 877
B9: Række 2 | C9: 2635 | D9: 2521 | E9: 2503 | F9: 2499 | G9: 2487 | H9: 2497 | I9: 2524
B10: Række 3 | C10: 4573 | D10: 4592 | E10: 5608 | F10: 11159 | G10: 14707 | H10: 11141 | I10: 9582
B11: Række 4 | C11: 11449 | D11: 12946 | E11: 11837 | F11: 13297 | G11: 15389 | H11: 17725 | I11: 20102
B12: Række 5 | C12: 20132 | D12: 25157 | E12: 39635 | F12: 72192 | G12: 136806 | H12: 200023 | I12: 266449
B13: Række 6 | C13: 46552 | D13: 38471 | E13: 17257 | F13: 30549 | G13: 48218 | H13: 68378 | I13: 64144
B14: Række 7 | C14: 22558 | D14: 23244 | E14: 28562 | F14: 32892 | G14: 52568 | H14: 84772 | I14: 62525
B15: Række 8 | C15: 55904 | D15: 49089 | E15: 43891 | F15: 53568 | G15: 59766 | H15: 50996 | I15: 49916
B16: Række 9 | C16: 6750 | D16: 9534 | E16: 13217 | F16: 10782 | G16: 11385 | H16: 11955 | I16: 20796
B17: Række 10 | C17: 61531 | D17: 47851 | E17: 45495 | F17: 42223 | G17: 44074 | H17: 41032 | I17: 51190
B18: Række 11 | C18: 651972 | D18: 521923 | E18: 449369 | F18: 655407 | G18: 826247 | H18: 687112 | I18: 718689
B19: Række 12 | C19: 1515685 | D19: 1135277 | E19: 1076758 | F19: 1383821 | G19: 1753261 | H19: 1742601 | I19: 1914432
B20: Række 13
B21: Række 14
B22: Række 15
B23: Række 16
B24: Række 17
B25: Række 18
B26: Række 19
B27: Række 20
A31: Tabel 2: Indekstal (År 0=100)
C33: Tid - År
C34: =+C7 -> 0 | D34: =+D7 -> 1 | E34: 2 | F34: 3 | G34: 4 | H34: 5 | I34: 6 | J34: 7 | K34: 8 | L34: 9 | M34: 10 | N34: 11 | O34: 12 | P34: 13 | Q34: 14 | R34: 15 | S34: 16
A35: Afhængig variabel | B35: Række 1 | C35: =IF(C8="","",C8/$C8*100) -> 100 | D35: =IF(D8="","",D8/$C8*100) -> 102.2371365 | E35: 101.5659955 | F35: 99.55257271 | G35: 98.65771812 | H35: 98.76957494 | I35: 98.098434
B36: Række 2 | C36: =IF(C9="","",C9/$C9*100) -> 100 | D36: 95.67362429 | E36: 94.99051233 | F36: 94.83870968 | G36: 94.38330171 | H36: 94.76280835 | I36: 95.78747628
B37: Række 3 | C37: =IF(C10="","",C10/$C10*100) -> 100 | D37: 100.4154822 | E37: 122.632845 | F37: 244.0192434 | G37: 321.6050733 | H37: 243.6256287 | I37: 209.5342226
B38: Række 4 | C38: =IF(C11="","",C11/$C11*100) -> 100 | D38: 113.0753778 | E38: 103.3889423 | F38: 116.1411477 | G38: 134.4134859 | H38: 154.8170146 | I38: 175.5786532
B39: Række 5 | C39: =IF(C12="","",C12/$C12*100) -> 100 | D39: 124.9602623 | E39: 196.8756209 | F39: 358.5932843 | G39: 679.545003 | H39: 993.5575204 | I39: 1323.509835
B40: Række 6 | C40: =IF(C13="","",C13/$C13*100) -> 100 | D40: 82.64091768 | E40: 37.07037292 | F40: 65.6233889 | G40: 103.5787936 | H40: 146.8852036 | I40: 137.7899983
B41: Række 7 | C41: =IF(C14="","",C14/$C14*100) -> 100 | D41: 103.0410497 | E41: 126.6158347 | F41: 145.8107988 | G41: 233.0348435 | H41: 375.7957266 | I41: 277.1743949
B42: Række 8 | C42: =IF(C15="","",C15/$C15*100) -> 100 | D42: 87.80945907 | E42: 78.51137665 | F42: 95.82140813 | G42: 106.9082713 | H42: 91.220664 | I42: 89.28878077
B43: Række 9 | C43: =IF(C16="","",C16/$C16*100) -> 100 | D43: 141.2444444 | E43: 195.8074074 | F43: 159.7333333 | G43: 168.6666667 | H43: 177.1111111 | I43: 308.0888889
B44: Række 10 | C44: =IF(C17="","",C17/$C17*100) -> 100 | D44: 77.76730429 | E44: 73.93834002 | F44: 68.62069526 | G44: 71.62893501 | H44: 66.68508557 | I44: 83.19383725
B45: Række 11 | C45: =IF(C18="","",C18/$C18*100) -> 100 | D45: 80.05297774 | E45: 68.92458572 | F45: 100.5268631 | G45: 126.7304424 | H45: 105.389802 | I45: 110.2331082
B46: Række 12 | C46: =IF(C19="","",C19/$C19*100) -> 100 | D46: 74.90190904 | E46: 71.04101446 | F46: 91.30003926 | G46: 115.674497 | H46: 114.9711846 | I46: 126.3080389
B47: Række 13 | C47: =IF(C20="","",C20/$C20*100) -> 
B48: Række 14 | C48: =IF(C21="","",C21/$C21*100) -> 
B49: Række 15 | C49: =IF(C22="","",C22/$C22*100) -> 
B50: Række 16 | C50: =IF(C23="","",C23/$C23*100) -> 
B51: Række 17 | C51: =IF(C24="","",C24/$C24*100) -> 
B52: Række 18 | C52: =IF(C25="","",C25/$C25*100) -> 
B53: Række 19 | C53: =IF(C26="","",C26/$C26*100) -> 
B54: Række 20 | C54: =IF(C27="","",C27/$C27*100) -> 

Sheet Lodret Indekstal
A1: Lodret indekstal på tidsserie
A3: Tabel 1: Absolutte tal | L3: Tilbage til hovedmenuen
A5: Begyndelsesår
C7: Afhængig variabel
C8: Kolonne 1 | D8: Kolonne 2 | E8: Kolonne 3 | F8: Kolonne 4 | G8: Kolonne 5 | H8: Kolonne 6 | I8: Kolonne 7 | J8: Kolonne 8 | K8: Kolonne 9 | L8: Kolonne 10 | M8: Kolonne 11 | N8: Kolonne 12 | O8: Kolonne 13 | P8: Kolonne 14 | Q8: Kolonne 15 | R8: Kolonne 16
A9: Tid - År | B9: =+$B$5 -> 0
B10: =+B9+1 -> 1
B11: =+B10+1 -> 2
B12: 3
B13: 4
B14: 5
B15: 6
B16: 7
B17: 8
B18: 9
B19: 10
B20: 11
B21: 12
B22: 13
B23: 14
B24: 15
B25: 16
B26: 17
B27: 18
B28: 19
B29: 20
A33: Tabel 2: Indekstal (År 1=100)
C35: Afhængig variabel
C36: Kolonne 1 | D36: Kolonne 2 | E36: Kolonne 3 | F36: Kolonne 4 | G36: Kolonne 5 | H36: Kolonne 6 | I36: Kolonne 7 | J36: Kolonne 8 | K36: Kolonne 9 | L36: Kolonne 10 | M36: Kolonne 11 | N36: Kolonne 12 | O36: Kolonne 13 | P36: Kolonne 14 | Q36: Kolonne 15 | R36: Kolonne 16
A37: Tid - År | B37: =+B9 -> 0 | C37: =IF(C9="","",C9/C$9*100) ->  | D37: =IF(D9="","",D9/D$9*100) -> 
B38: =+B10 -> 1 | C38: =IF(C10="","",C10/C$9*100) -> 
B39: =+B11 -> 2 | C39: =IF(C11="","",C11/C$9*100) -> 
B40: =+B12 -> 3 | C40: =IF(C12="","",C12/C$9*100) -> 
B41: 4 | C41: =IF(C13="","",C13/C$9*100) -> 
B42: 5 | C42: =IF(C14="","",C14/C$9*100) -> 
B43: 6 | C43: =IF(C15="","",C15/C$9*100) -> 
B44: 7 | C44: =IF(C16="","",C16/C$9*100) -> 
B45: 8 | C45: =IF(C17="","",C17/C$9*100) -> 
B46: 9 | C46: =IF(C18="","",C18/C$9*100) -> 
B47: 10 | C47: =IF(C19="","",C19/C$9*100) -> 
B48: 11 | C48: =IF(C20="","",C20/C$9*100) -> 
B49: 12 | C49: =IF(C21="","",C21/C$9*100) -> 
B50: 13 | C50: =IF(C22="","",C22/C$9*100) -> 
B51: 14 | C51: =IF(C23="","",C23/C$9*100) -> 
B52: 15 | C52: =IF(C24="","",C24/C$9*100) -> 
B53: 16 | C53: =IF(C25="","",C25/C$9*100) -> 
B54: 17 | C54: =IF(C26="","",C26/C$9*100) -> 
B55: 18 | C55: =IF(C27="","",C27/C$9*100) -> 
B56: 19 | C56: =IF(C28="","",C28/C$9*100) -> 
B57: 20 | C57: =IF(C29="","",C29/C$9*100) -> 

Sheet Vandret Vækstrate
A1: Vandret Vækstrate
K3: Tilbage til hovedmenuen
A4: Tabel 1: Absolutte tal
A6: Begyndelsesår
C8: Tid - År
C9: =+$B$6 -> 0 | D9: =+C9+1 -> 1 | E9: =+D9+1 -> 2 | F9: 3 | G9: 4 | H9: 5 | I9: 6 | J9: 7 | K9: 8 | L9: 9 | M9: =+L9+1 -> 10 | N9: =+M9+1 -> 11 | O9: =+N9+1 -> 12 | P9: =+O9+1 -> 13 | Q9: =+P9+1 -> 14 | R9: =+Q9+1 -> 15 | S9: =+R9+1 -> 16
A10: Afhængig variabel | B10: Række 1
B11: Række 2
B12: Række 3
B13: Række 4
B14: Række 5
B15: Række 6
B16: Række 7
B17: Række 8
B18: Række 9
B19: Række 10
B20: Række 11
B21: Række 12
B22: Række 13
B23: Række 14
B24: Række 15
B25: Række 16
B26: Række 17
B27: Række 18
B28: Række 19
B29: Række 20
A33: Tabel 2: Årlig procentvis vækstrate
C35: Tid - År
C36: =+C9 -> 0 | D36: =+D9 -> 1 | E36: 2 | F36: 3 | G36: 4 | H36: 5 | I36: 6 | J36: 7 | K36: 8 | L36: 9 | M36: 10 | N36: 11 | O36: 12 | P36: 13 | Q36: 14 | R36: 15 | S36: 16
A37: Afhængig variabel | B37: Række 1 | C37: -- | D37: =IF(D10="","",((D10-C10)/C10)*100) ->  | E37: =IF(E10="","",((E10-D10)/D10)*100) -> 
B38: Række 2 | C38: -- | D38: =IF(D11="","",((D11-C11)/C11)*100) -> 
B39: Række 3 | C39: -- | D39: =IF(D12="","",((D12-C12)/C12)*100) -> 
B40: Række 4 | C40: -- | D40: =IF(D13="","",((D13-C13)/C13)*100) -> 
B41: Række 5 | C41: -- | D41: =IF(D14="","",((D14-C14)/C14)*100) -> 
B42: Række 6 | C42: -- | D42: =IF(D15="","",((D15-C15)/C15)*100) -> 
B43: Række 7 | C43: -- | D43: =IF(D16="","",((D16-C16)/C16)*100) -> 
B44: Række 8 | C44: -- | D44: =IF(D17="","",((D17-C17)/C17)*100) -> 
B45: Række 9 | C45: -- | D45: =IF(D18="","",((D18-C18)/C18)*100) -> 
B46: Række 10 | C46: -- | D46: =IF(D19="","",((D19-C19)/C19)*100) -> 
B47: Række 11 | C47: -- | D47: =IF(D20="","",((D20-C20)/C20)*100) -> 
B48: Række 12 | C48: -- | D48: =IF(D21="","",((D21-C21)/C21)*100) -> 
B49: Række 13 | C49: -- | D49: =IF(D22="","",((D22-C22)/C22)*100) -> 
B50: Række 14 | C50: -- | D50: =IF(D23="","",((D23-C23)/C23)*100) -> 
B51: Række 15 | C51: -- | D51: =IF(D24="","",((D24-C24)/C24)*100) -> 
B52: Række 16 | C52: -- | D52: =IF(D25="","",((D25-C25)/C25)*100) -> 
B53: Række 17 | C53: -- | D53: =IF(D26="","",((D26-C26)/C26)*100) -> 
B54: Række 18 | C54: -- | D54: =IF(D27="","",((D27-C27)/C27)*100) -> 
B55: Række 19 | C55: -- | D55: =IF(D28="","",((D28-C28)/C28)*100) -> 
B56: Række 20 | C56: -- | D56: =IF(D29="","",((D29-C29)/C29)*100) -> 

Sheet Lodret Vækstrate
A1: Lodret Vækstrate
L3: Tilbage til hovedmenuen
A4: Tabel 1: Absolutte tal
A6: Begyndelsesår
C8: Afhængig variabel
C9: Kolonne 1 | D9: Kolonne 2 | E9: Kolonne 3 | F9: Kolonne 4 | G9: Kolonne 5 | H9: Kolonne 6 | I9: Kolonne 7 | J9: Kolonne 8 | K9: Kolonne 9 | L9: Kolonne 10 | M9: Kolonne 11 | N9: Kolonne 12 | O9: Kolonne 13 | P9: Kolonne 14 | Q9: Kolonne 15 | R9: Kolonne 16
A10: Tid - År | B10: =+$B$6 -> 0
B11: =+B10+1 -> 1
B12: =+B11+1 -> 2
B13: 3
B14: 4
B15: 5
B16: 6
B17: 7
B18: 8
B19: 9
B20: 10
B21: 11
B22: 12
B23: 13
B24: 14
B25: 15
B26: 16
B27: 17
B28: 18
B29: 19
B30: 20
A34: Tabel 2: Årlig procentvis vækstrate
C36: Afhængig variabel
C37: Kolonne 1 | D37: Kolonne 2 | E37: Kolonne 3 | F37: Kolonne 4 | G37: Kolonne 5 | H37: Kolonne 6 | I37: Kolonne 7 | J37: Kolonne 8 | K37: Kolonne 9 | L37: Kolonne 10 | M37: Kolonne 11 | N37: Kolonne 12 | O37: Kolonne 13 | P37: Kolonne 14 | Q37: Kolonne 15 | R37: Kolonne 16
A38: Tid - År | B38: =+B10 -> 0 | C38: -- | D38: -- | E38: -- | F38: -- | G38: -- | H38: -- | I38: -- | J38: -- | K38: -- | L38: -- | M38: -- | N38: -- | O38: -- | P38: -- | Q38: -- | R38: --
B39: 1 | C39: =IF(C11="","",((C11-C10)/C10)*100) ->  | D39: =IF(D11="","",((D11-D10)/D10)*100) -> 
B40: 2 | C40: =IF(C12="","",((C12-C11)/C11)*100) -> 
B41: 3 | C41: =IF(C13="","",((C13-C12)/C12)*100) -> 
B42: 4 | C42: =IF(C14="","",((C14-C13)/C13)*100) -> 
B43: 5 | C43: =IF(C15="","",((C15-C14)/C14)*100) -> 
B44: 6 | C44: =IF(C16="","",((C16-C15)/C15)*100) -> 
B45: 7 | C45: =IF(C17="","",((C17-C16)/C16)*100) -> 
B46: 8 | C46: =IF(C18="","",((C18-C17)/C17)*100) -> 
B47: 9 | C47: =IF(C19="","",((C19-C18)/C18)*100) -> 
B48: 10 | C48: =IF(C20="","",((C20-C19)/C19)*100) -> 
B49: =+B21 -> 11 | C49: =IF(C21="","",((C21-C20)/C20)*100) -> 
B50: 12 | C50: =IF(C22="","",((C22-C21)/C21)*100) -> 
B51: 13 | C51: =IF(C23="","",((C23-C22)/C22)*100) -> 
B52: 14 | C52: =IF(C24="","",((C24-C23)/C23)*100) -> 
B53: 15 | C53: =IF(C25="","",((C25-C24)/C24)*100) -> 
B54: 16 | C54: =IF(C26="","",((C26-C25)/C25)*100) -> 
B55: 17 | C55: =IF(C27="","",((C27-C26)/C26)*100) -> 
B56: 18 | C56: =IF(C28="","",((C28-C27)/C27)*100) -> 
B57: 19 | C57: =IF(C29="","",((C29-C28)/C28)*100) -> 

Sheet Stikprøveusikkerhed Andel
A1: Konfidensinterval for populationsandel | L1: Tilbage til hovedmenuen
I4: =+B6*(B7/100) -> 206.36
A5: Sikkerhedsniveau | B5: 0.95 | C5: 1-a | D5: Forudsætning: | I5: =+B6*(1-(B7/100)) -> 1333.64
A6: Stikprøvestørrelse | B6: 1540 | C6: n | D6: Både np og n(1-p) er >= 5
A7: Stikprøveandel | B7: 13.4 | C7: p-hat | D7: =IF(MIN(I4:I5)<5,"Stikprøven er for lille :-(","Stikprøven er stor nok :-)") -> Stikprøven er stor nok :-)
A10: Konfidensinterval | B10: =B7 -> 13.4 | C10: ± | D10: =-NORMSINV((1-$B$5)/2)*SQRT(B7*(100-B7)/B6) -> 1.701371195 | E10: = | F10: [ | G10: =B10-D10 -> 11.6986288 | H10: , | I10: =B10+D10 -> 15.1013712 | J10: ]
A12: Sammenligningsværdi | B12: 21.1
A15: Tilbage til hovedmenuen
A17: Konfidensinterval
A18: KI Lav | B18: =+G10 -> 11.6986288 | C18: 1.5
A19: KI Høj | B19: =+I10 -> 15.1013712 | C19: 1.5
A20: Sammenligningsværdi | B20: =+B12 -> 21.1 | C20: 1.5

Sheet Måling vs valg
A1: Stikprøveusikkerhed og meningsmålinger
Q2: Tilbage til hovedmenuen
B3: FV 2019 | C3: Måling | D3: Difference | E3: Usikkerheds- | F3: Konfidensinterval | I3: Test | J3: P-værdi | K3: Signifikant | L3: Signifikant | M3: Signifikant | N3: Signifikant | O3: Signifikant
A4: Parti | B4: Procent | C4: Procent | D4: Procentpoint | E4: margin | F4: Nedre | G4: Øvre | H4: Konfidensinterval | I4: størrelse | K4: ændring? | L4: fremgang | M4: tilbagegang | N4: over spærregrænsen? | O4: under spærregrænsen?
A5: Socialdemokratiet | B5: 27.5 | C5: 20.8 | D5: =+C5-B5 -> -6.7 | E5: =NORMINV($B$29+(1-$B$29)/2,0,1)*(C5*(100-C5)/$B$26)^0.5 -> 1.878153699 | F5: =ROUND(+C5-E5,1) -> 18.9 | G5: =ROUND(+C5+E5,1) -> 22.7 | H5: ="[ "&F5&"; "&G5&" ]" -> [ 18,9; 22,7 ] | I5: =IF(C5/100=0,"",(C5/100-B5/100)/((C5/100*(1-C5/100)/$B$26))^0.5) -> -6.991844546 | J5: =(IF(I5>0,1-_xlfn.NORM.DIST(I5,0,1,TRUE),_xlfn.NORM.DIST(I5,0,1,TRUE)))*2 -> 2.712953996e-12 | K5: =IF(AND(B5>F5,B5<G5),"Nej","Ja") -> Ja | L5: =IF(AND(D5>0,K5="Ja"),"Ja","Nej") -> Nej | M5: =IF(AND(D5<0,K5="Ja"),"Ja","Nej") -> Ja | N5: =IF(F5>=2,"Ja","Nej") -> Ja | O5: =IF(G5<2,"Ja","Nej") -> Nej | R5: =+F5 -> 18.9 | S5: =+G5-F5 -> 3.8
A6: Venstre | B6: 13.3 | C6: 9.1 | D6: -4.2 | E6: =NORMINV($B$29+(1-$B$29)/2,0,1)*(C6*(100-C6)/$B$26)^0.5 -> 1.330881872 | F6: =ROUND(+C6-E6,1) -> 7.8 | G6: =ROUND(+C6+E6,1) -> 10.4 | H6: ="[ "&F6&"; "&G6&" ]" -> [ 7,8; 10,4 ] | I6: =IF(C6/100=0,"",(C6/100-B6/100)/((C6/100*(1-C6/100)/$B$26))^0.5) -> -6.185258745 | J6: =(IF(I6>0,1-_xlfn.NORM.DIST(I6,0,1,TRUE),_xlfn.NORM.DIST(I6,0,1,TRUE)))*2 -> 6.200068926e-10 | K6: Ja | L6: =IF(AND(D6>0,K6="Ja"),"Ja","Nej") -> Nej | M6: =IF(AND(D6<0,K6="Ja"),"Ja","Nej") -> Ja | N6: =IF(F6>=2,"Ja","Nej") -> Ja | O6: =IF(G6<2,"Ja","Nej") -> Nej | R6: =+F6 -> 7.8 | S6: =+G6-F6 -> 2.6
A7: Moderate | B7: 9.3 | C7: 9 | D7: -0.3 | E7: 1.324276958 | F7: 7.7 | G7: 10.3 | H7: [ 7,7; 10,3 ] | I7: -0.4440077219 | J7: 0.657037001 | K7: Nej | L7: =IF(AND(D7>0,K7="Ja"),"Ja","Nej") -> Nej | M7: Nej | N7: Ja | O7: Nej | R7: 7.7 | S7: 2.6
A8: SF | B8: 8.3 | C8: 13.1 | D8: 4.8 | E8: 1.561285793 | F8: 11.5 | G8: 14.7 | H8: [ 11,5; 14,7 ] | I8: 6.025691882 | J8: 1.683877038e-09 | K8: Ja | L8: Ja | M8: Nej | N8: Ja | O8: Nej | R8: 11.5 | S8: 3.2
A9: Danmarksdemokraterne | B9: 8.1 | C9: 8.9 | D9: 0.8 | E9: 1.317622686 | F9: 7.6 | G9: 10.2 | H9: [ 7,6; 10,2 ] | I9: 1.190000146 | J9: 0.2340463348 | K9: Nej | L9: Nej | M9: Nej | N9: Ja | O9: Nej | R9: 7.6 | S9: 2.6
A10: LA | B10: 7.9 | C10: 11 | D10: 3.1 | E10: 1.447865493 | F10: 9.6 | G10: 12.4 | H10: [ 9,6; 12,4 ] | I10: 4.196445307 | J10: 2.711368988e-05 | K10: Ja | L10: Ja | M10: Nej | N10: Ja | O10: Nej | R10: 9.6 | S10: 2.8
A11: Konservative | B11: 5.5 | C11: 5.5 | D11: 0 | E11: 1.054955451 | F11: 4.4 | G11: 6.6 | H11: [ 4,4; 6,6 ] | I11: 0 | J11: 1 | K11: Nej | L11: Nej | M11: Nej | N11: Ja | O11: Nej | R11: 4.4 | S11: 2.2
A12: El | B12: 5.1 | C12: 7.6 | D12: 2.5 | E12: 1.226251787 | F12: 6.4 | G12: 8.8 | H12: [ 6,4; 8,8 ] | I12: 3.995843278 | J12: 6.446437153e-05 | K12: Ja | L12: Ja | M12: Nej | N12: Ja | O12: Nej | R12: 6.4 | S12: 2.4
A13: Radikale | B13: 3.8 | C13: 3.3 | D13: -0.5 | E13: =NORMINV($B$29+(1-$B$29)/2,0,1)*(C13*(100-C13)/$B$26)^0.5 -> 0.8266222267 | F13: 2.5 | G13: =ROUND(+C13+E13,1) -> 4.1 | H13: [ 2,5; 4,1 ] | I13: -1.185525819 | J13: 0.2358096125 | K13: Nej | L13: Nej | M13: Nej | N13: Ja | O13: Nej | R13: =+F13 -> 2.5 | S13: =+G13-F13 -> 1.6
A14: Nye borgerlige | B14: 3.7 | C14: 2.7 | D14: -1 | E14: 0.7500240229 | F14: 1.9 | G14: 3.5 | H14: [ 1,9; 3,5 ] | I14: -2.61320161 | J14: 0.008969837158 | K14: Ja | L14: Nej | M14: Ja | N14: Nej | O14: Nej | R14: =+F14 -> 1.9 | S14: =+G14-F14 -> 1.6
A15: Alternativet | B15: 3.3 | C15: 2.2 | D15: -1.1 | E15: 0.6787621857 | F15: 1.5 | G15: 2.9 | H15: [ 1,5; 2,9 ] | I15: -3.176311864 | J15: 0.001491605045 | K15: Ja | L15: Nej | M15: Ja | N15: Nej | O15: Nej | R15: 1.5 | S15: 1.4
A16: DF | B16: 2.6 | C16: 4.7 | D16: 2.1 | E16: 0.9793371989 | F16: 3.7 | G16: 5.7 | H16: [ 3,7; 5,7 ] | I16: 4.20276527 | J16: 2.636739713e-05 | K16: Ja | L16: Ja | M16: Nej | N16: Ja | O16: Nej | R16: 3.7 | S16: 2
A17: Frie Grønne | B17: 0.9 | C17: 0.6 | D17: -0.3 | E17: 0.357359794 | F17: 0.2 | G17: 1 | H17: [ 0,2; 1 ] | I17: -1.645370311 | J17: 0.09989346817 | K17: Nej | L17: Nej | M17: Nej | N17: Nej | O17: Ja | R17: 0.2 | S17: 0.8
D18: 0 | E18: 0 | F18: 0 | G18: 0 | H18: [ 0; 0 ] | K18: Ja | L18: Nej | M18: Nej | N18: Nej | O18: Ja | R18: 0 | S18: 0
D19: 0 | E19: 0 | F19: 0 | G19: 0 | H19: [ 0; 0 ] | K19: Ja | L19: Nej | M19: Nej | N19: Nej | O19: Ja | R19: 0 | S19: 0
D20: 0 | E20: 0 | F20: 0 | G20: 0 | H20: [ 0; 0 ] | K20: Ja | L20: Nej | M20: Nej | N20: Nej | O20: Ja | R20: 0 | S20: 0
A22: Måling fra:
A23: Epinions måling den 31. marts 2023
A26: Stikprøvestørrelse | B26: 1794
A29: Konfidensniveau | B29: 0.95
A32: Parti - valgresultat - konfidensinterval
A33: =+A5&" "&B5&" "&H5 -> Socialdemokratiet 27,5 [ 18,9; 22,7 ]
A34: =+A6&" "&B6&" "&H6 -> Venstre 13,3 [ 7,8; 10,4 ]
A35: Moderate 9,3 [ 7,7; 10,3 ]
A36: SF 8,3 [ 11,5; 14,7 ]
A37: Danmarksdemokraterne 8,1 [ 7,6; 10,2 ]
A38: LA 7,9 [ 9,6; 12,4 ]
A39: Konservative 5,5 [ 4,4; 6,6 ]
A40: El 5,1 [ 6,4; 8,8 ]
A41: Radikale 3,8 [ 2,5; 4,1 ]
A42: Nye borgerlige 3,7 [ 1,9; 3,5 ]
A43: Alternativet 3,3 [ 1,5; 2,9 ]
A44: DF 2,6 [ 3,7; 5,7 ]
A45: Frie Grønne 0,9 [ 0,2; 1 ]
A46: [ 0; 0 ]
A47: [ 0; 0 ]
A48: [ 0; 0 ]

Sheet chi_help (hidden)
A3: Start | B3: 0 | C3: Kritisk værdi | D3: =ROUND(#REF!,3) -> 
A4: Interval | B4: =MAX(#REF!,#REF!)/800 ->  | C4: Teststørrelse | D4: =ROUND(#REF!,3) -> 
B8: Chi2 | C8: Kritisk værdi | D8: Teststørrelse
A9: =+$B$3 -> 0 | B9: =_xlfn.CHISQ.DIST(A9,#REF!,FALSE) ->  | C9: =IF($A9<$D$3,IF($A10>$D$3,MAX($B$9:$B$1009),""),"") ->  | D9: =IF($A9<$D$4,IF($A10>$D$4,MAX($B$9:$B$1009),""),"") -> 
A10: =+A9+$B$4 ->  | B10: =_xlfn.CHISQ.DIST(A10,#REF!,FALSE) -> 
B11: =_xlfn.CHISQ.DIST(A11,#REF!,FALSE) -> 
B12: =_xlfn.CHISQ.DIST(A12,#REF!,FALSE) -> 
B13: =_xlfn.CHISQ.DIST(A13,#REF!,FALSE) -> 
B14: =_xlfn.CHISQ.DIST(A14,#REF!,FALSE) -> 
B15: =_xlfn.CHISQ.DIST(A15,#REF!,FALSE) -> 
B16: =_xlfn.CHISQ.DIST(A16,#REF!,FALSE) -> 
B17: =_xlfn.CHISQ.DIST(A17,#REF!,FALSE) -> 
B18: =_xlfn.CHISQ.DIST(A18,#REF!,FALSE) -> 
B19: =_xlfn.CHISQ.DIST(A19,#REF!,FALSE) -> 
B20: =_xlfn.CHISQ.DIST(A20,#REF!,FALSE) -> 
B21: =_xlfn.CHISQ.DIST(A21,#REF!,FALSE) -> 
B22: =_xlfn.CHISQ.DIST(A22,#REF!,FALSE) -> 
B23: =_xlfn.CHISQ.DIST(A23,#REF!,FALSE) -> 
B24: =_xlfn.CHISQ.DIST(A24,#REF!,FALSE) -> 
B25: =_xlfn.CHISQ.DIST(A25,#REF!,FALSE) -> 
B26: =_xlfn.CHISQ.DIST(A26,#REF!,FALSE) -> 
B27: =_xlfn.CHISQ.DIST(A27,#REF!,FALSE) -> 
B28: =_xlfn.CHISQ.DIST(A28,#REF!,FALSE) -> 
B29: =_xlfn.CHISQ.DIST(A29,#REF!,FALSE) -> 
B30: =_xlfn.CHISQ.DIST(A30,#REF!,FALSE) -> 
B31: =_xlfn.CHISQ.DIST(A31,#REF!,FALSE) -> 
B32: =_xlfn.CHISQ.DIST(A32,#REF!,FALSE) -> 
B33: =_xlfn.CHISQ.DIST(A33,#REF!,FALSE) -> 
B34: =_xlfn.CHISQ.DIST(A34,#REF!,FALSE) -> 
B35: =_xlfn.CHISQ.DIST(A35,#REF!,FALSE) -> 
B36: =_xlfn.CHISQ.DIST(A36,#REF!,FALSE) -> 
B37: =_xlfn.CHISQ.DIST(A37,#REF!,FALSE) -> 
B38: =_xlfn.CHISQ.DIST(A38,#REF!,FALSE) -> 
B39: =_xlfn.CHISQ.DIST(A39,#REF!,FALSE) -> 
B40: =_xlfn.CHISQ.DIST(A40,#REF!,FALSE) -> 
B41: =_xlfn.CHISQ.DIST(A41,#REF!,FALSE) -> 
B42: =_xlfn.CHISQ.DIST(A42,#REF!,FALSE) -> 
B43: =_xlfn.CHISQ.DIST(A43,#REF!,FALSE) -> 
B44: =_xlfn.CHISQ.DIST(A44,#REF!,FALSE) -> 
B45: =_xlfn.CHISQ.DIST(A45,#REF!,FALSE) -> 
B46: =_xlfn.CHISQ.DIST(A46,#REF!,FALSE) -> 
B47: =_xlfn.CHISQ.DIST(A47,#REF!,FALSE) -> 
B48: =_xlfn.CHISQ.DIST(A48,#REF!,FALSE) -> 
B49: =_xlfn.CHISQ.DIST(A49,#REF!,FALSE) -> 
B50: =_xlfn.CHISQ.DIST(A50,#REF!,FALSE) -> 
B51: =_xlfn.CHISQ.DIST(A51,#REF!,FALSE) -> 
B52: =_xlfn.CHISQ.DIST(A52,#REF!,FALSE) -> 
B53: =_xlfn.CHISQ.DIST(A53,#REF!,FALSE) -> 
B54: =_xlfn.CHISQ.DIST(A54,#REF!,FALSE) -> 
B55: =_xlfn.CHISQ.DIST(A55,#REF!,FALSE) -> 
B56: =_xlfn.CHISQ.DIST(A56,#REF!,FALSE) -> 
B57: =_xlfn.CHISQ.DIST(A57,#REF!,FALSE) -> 
B58: =_xlfn.CHISQ.DIST(A58,#REF!,FALSE) -> 
B59: =_xlfn.CHISQ.DIST(A59,#REF!,FALSE) -> 
B60: =_xlfn.CHISQ.DIST(A60,#REF!,FALSE) -> 
B61: =_xlfn.CHISQ.DIST(A61,#REF!,FALSE) -> 
B62: =_xlfn.CHISQ.DIST(A62,#REF!,FALSE) -> 
B63: =_xlfn.CHISQ.DIST(A63,#REF!,FALSE) -> 
B64: =_xlfn.CHISQ.DIST(A64,#REF!,FALSE) -> 
B65: =_xlfn.CHISQ.DIST(A65,#REF!,FALSE) -> 
B66: =_xlfn.CHISQ.DIST(A66,#REF!,FALSE) -> 
B67: =_xlfn.CHISQ.DIST(A67,#REF!,FALSE) -> 
B68: =_xlfn.CHISQ.DIST(A68,#REF!,FALSE) -> 
B69: =_xlfn.CHISQ.DIST(A69,#REF!,FALSE) -> 
B70: =_xlfn.CHISQ.DIST(A70,#REF!,FALSE) -> 
B71: =_xlfn.CHISQ.DIST(A71,#REF!,FALSE) -> 
B72: =_xlfn.CHISQ.DIST(A72,#REF!,FALSE) -> 
B73: =_xlfn.CHISQ.DIST(A73,#REF!,FALSE) ->  | C73: =IF($A73<$D$3,IF($A74>$D$3,MAX($B$9:$B$1009),""),"") ->  | D73: =IF($A73<$D$4,IF($A74>$D$4,MAX($B$9:$B$1009),""),"") -> 
A74: =+A73+$B$4 ->  | B74: =_xlfn.CHISQ.DIST(A74,#REF!,FALSE) -> 
B75: =_xlfn.CHISQ.DIST(A75,#REF!,FALSE) -> 
B76: =_xlfn.CHISQ.DIST(A76,#REF!,FALSE) -> 
B77: =_xlfn.CHISQ.DIST(A77,#REF!,FALSE) -> 
B78: =_xlfn.CHISQ.DIST(A78,#REF!,FALSE) -> 
B79: =_xlfn.CHISQ.DIST(A79,#REF!,FALSE) -> 
B80: =_xlfn.CHISQ.DIST(A80,#REF!,FALSE) -> 
B81: =_xlfn.CHISQ.DIST(A81,#REF!,FALSE) -> 
B82: =_xlfn.CHISQ.DIST(A82,#REF!,FALSE) -> 
B83: =_xlfn.CHISQ.DIST(A83,#REF!,FALSE) -> 
B84: =_xlfn.CHISQ.DIST(A84,#REF!,FALSE) -> 
B85: =_xlfn.CHISQ.DIST(A85,#REF!,FALSE) -> 
B86: =_xlfn.CHISQ.DIST(A86,#REF!,FALSE) -> 
B87: =_xlfn.CHISQ.DIST(A87,#REF!,FALSE) -> 
B88: =_xlfn.CHISQ.DIST(A88,#REF!,FALSE) -> 
B89: =_xlfn.CHISQ.DIST(A89,#REF!,FALSE) -> 
B90: =_xlfn.CHISQ.DIST(A90,#REF!,FALSE) -> 
B91: =_xlfn.CHISQ.DIST(A91,#REF!,FALSE) -> 
B92: =_xlfn.CHISQ.DIST(A92,#REF!,FALSE) -> 
B93: =_xlfn.CHISQ.DIST(A93,#REF!,FALSE) -> 
B94: =_xlfn.CHISQ.DIST(A94,#REF!,FALSE) -> 
B95: =_xlfn.CHISQ.DIST(A95,#REF!,FALSE) -> 
B96: =_xlfn.CHISQ.DIST(A96,#REF!,FALSE) -> 
B97: =_xlfn.CHISQ.DIST(A97,#REF!,FALSE) -> 
B98: =_xlfn.CHISQ.DIST(A98,#REF!,FALSE) -> 
B99: =_xlfn.CHISQ.DIST(A99,#REF!,FALSE) -> 
B100: =_xlfn.CHISQ.DIST(A100,#REF!,FALSE) -> 
B101: =_xlfn.CHISQ.DIST(A101,#REF!,FALSE) -> 
B102: =_xlfn.CHISQ.DIST(A102,#REF!,FALSE) -> 
B103: =_xlfn.CHISQ.DIST(A103,#REF!,FALSE) -> 
B104: =_xlfn.CHISQ.DIST(A104,#REF!,FALSE) -> 
B105: =_xlfn.CHISQ.DIST(A105,#REF!,FALSE) -> 
B106: =_xlfn.CHISQ.DIST(A106,#REF!,FALSE) -> 
B107: =_xlfn.CHISQ.DIST(A107,#REF!,FALSE) -> 
B108: =_xlfn.CHISQ.DIST(A108,#REF!,FALSE) -> 
B109: =_xlfn.CHISQ.DIST(A109,#REF!,FALSE) -> 
B110: =_xlfn.CHISQ.DIST(A110,#REF!,FALSE) -> 
B111: =_xlfn.CHISQ.DIST(A111,#REF!,FALSE) -> 
B112: =_xlfn.CHISQ.DIST(A112,#REF!,FALSE) -> 
B113: =_xlfn.CHISQ.DIST(A113,#REF!,FALSE) -> 
B114: =_xlfn.CHISQ.DIST(A114,#REF!,FALSE) -> 
B115: =_xlfn.CHISQ.DIST(A115,#REF!,FALSE) -> 
B116: =_xlfn.CHISQ.DIST(A116,#REF!,FALSE) -> 
B117: =_xlfn.CHISQ.DIST(A117,#REF!,FALSE) -> 
B118: =_xlfn.CHISQ.DIST(A118,#REF!,FALSE) -> 
B119: =_xlfn.CHISQ.DIST(A119,#REF!,FALSE) -> 
B120: =_xlfn.CHISQ.DIST(A120,#REF!,FALSE) -> 
B121: =_xlfn.CHISQ.DIST(A121,#REF!,FALSE) -> 
B122: =_xlfn.CHISQ.DIST(A122,#REF!,FALSE) -> 
B123: =_xlfn.CHISQ.DIST(A123,#REF!,FALSE) -> 
B124: =_xlfn.CHISQ.DIST(A124,#REF!,FALSE) -> 
B125: =_xlfn.CHISQ.DIST(A125,#REF!,FALSE) -> 
B126: =_xlfn.CHISQ.DIST(A126,#REF!,FALSE) -> 
B127: =_xlfn.CHISQ.DIST(A127,#REF!,FALSE) -> 
B128: =_xlfn.CHISQ.DIST(A128,#REF!,FALSE) -> 
B129: =_xlfn.CHISQ.DIST(A129,#REF!,FALSE) -> 
B130: =_xlfn.CHISQ.DIST(A130,#REF!,FALSE) -> 
B131: =_xlfn.CHISQ.DIST(A131,#REF!,FALSE) -> 
B132: =_xlfn.CHISQ.DIST(A132,#REF!,FALSE) -> 
B133: =_xlfn.CHISQ.DIST(A133,#REF!,FALSE) -> 
B134: =_xlfn.CHISQ.DIST(A134,#REF!,FALSE) -> 
B135: =_xlfn.CHISQ.DIST(A135,#REF!,FALSE) -> 
B136: =_xlfn.CHISQ.DIST(A136,#REF!,FALSE) -> 
B137: =_xlfn.CHISQ.DIST(A137,#REF!,FALSE) ->  | C137: =IF($A137<$D$3,IF($A138>$D$3,MAX($B$9:$B$1009),""),"") ->  | D137: =IF($A137<$D$4,IF($A138>$D$4,MAX($B$9:$B$1009),""),"") -> 
A138: =+A137+$B$4 ->  | B138: =_xlfn.CHISQ.DIST(A138,#REF!,FALSE) -> 
B139: =_xlfn.CHISQ.DIST(A139,#REF!,FALSE) -> 
B140: =_xlfn.CHISQ.DIST(A140,#REF!,FALSE) -> 
B141: =_xlfn.CHISQ.DIST(A141,#REF!,FALSE) -> 
B142: =_xlfn.CHISQ.DIST(A142,#REF!,FALSE) -> 
B143: =_xlfn.CHISQ.DIST(A143,#REF!,FALSE) -> 
B144: =_xlfn.CHISQ.DIST(A144,#REF!,FALSE) -> 
B145: =_xlfn.CHISQ.DIST(A145,#REF!,FALSE) -> 
B146: =_xlfn.CHISQ.DIST(A146,#REF!,FALSE) -> 
B147: =_xlfn.CHISQ.DIST(A147,#REF!,FALSE) -> 
B148: =_xlfn.CHISQ.DIST(A148,#REF!,FALSE) -> 
B149: =_xlfn.CHISQ.DIST(A149,#REF!,FALSE) -> 
B150: =_xlfn.CHISQ.DIST(A150,#REF!,FALSE) -> 
B151: =_xlfn.CHISQ.DIST(A151,#REF!,FALSE) -> 
B152: =_xlfn.CHISQ.DIST(A152,#REF!,FALSE) -> 
B153: =_xlfn.CHISQ.DIST(A153,#REF!,FALSE) -> 
B154: =_xlfn.CHISQ.DIST(A154,#REF!,FALSE) -> 
B155: =_xlfn.CHISQ.DIST(A155,#REF!,FALSE) -> 
B156: =_xlfn.CHISQ.DIST(A156,#REF!,FALSE) -> 
B157: =_xlfn.CHISQ.DIST(A157,#REF!,FALSE) -> 
B158: =_xlfn.CHISQ.DIST(A158,#REF!,FALSE) -> 
B159: =_xlfn.CHISQ.DIST(A159,#REF!,FALSE) -> 
B160: =_xlfn.CHISQ.DIST(A160,#REF!,FALSE) -> 
B161: =_xlfn.CHISQ.DIST(A161,#REF!,FALSE) -> 
B162: =_xlfn.CHISQ.DIST(A162,#REF!,FALSE) -> 
B163: =_xlfn.CHISQ.DIST(A163,#REF!,FALSE) -> 
B164: =_xlfn.CHISQ.DIST(A164,#REF!,FALSE) -> 
B165: =_xlfn.CHISQ.DIST(A165,#REF!,FALSE) -> 
B166: =_xlfn.CHISQ.DIST(A166,#REF!,FALSE) -> 
B167: =_xlfn.CHISQ.DIST(A167,#REF!,FALSE) -> 
B168: =_xlfn.CHISQ.DIST(A168,#REF!,FALSE) -> 
B169: =_xlfn.CHISQ.DIST(A169,#REF!,FALSE) -> 
B170: =_xlfn.CHISQ.DIST(A170,#REF!,FALSE) -> 
B171: =_xlfn.CHISQ.DIST(A171,#REF!,FALSE) -> 
B172: =_xlfn.CHISQ.DIST(A172,#REF!,FALSE) -> 
B173: =_xlfn.CHISQ.DIST(A173,#REF!,FALSE) -> 
B174: =_xlfn.CHISQ.DIST(A174,#REF!,FALSE) -> 
B175: =_xlfn.CHISQ.DIST(A175,#REF!,FALSE) -> 
B176: =_xlfn.CHISQ.DIST(A176,#REF!,FALSE) -> 
B177: =_xlfn.CHISQ.DIST(A177,#REF!,FALSE) -> 
B178: =_xlfn.CHISQ.DIST(A178,#REF!,FALSE) -> 
B179: =_xlfn.CHISQ.DIST(A179,#REF!,FALSE) -> 
B180: =_xlfn.CHISQ.DIST(A180,#REF!,FALSE) -> 
B181: =_xlfn.CHISQ.DIST(A181,#REF!,FALSE) -> 
B182: =_xlfn.CHISQ.DIST(A182,#REF!,FALSE) -> 
B183: =_xlfn.CHISQ.DIST(A183,#REF!,FALSE) -> 
B184: =_xlfn.CHISQ.DIST(A184,#REF!,FALSE) -> 
B185: =_xlfn.CHISQ.DIST(A185,#REF!,FALSE) -> 
B186: =_xlfn.CHISQ.DIST(A186,#REF!,FALSE) -> 
B187: =_xlfn.CHISQ.DIST(A187,#REF!,FALSE) -> 
B188: =_xlfn.CHISQ.DIST(A188,#REF!,FALSE) -> 
B189: =_xlfn.CHISQ.DIST(A189,#REF!,FALSE) -> 
B190: =_xlfn.CHISQ.DIST(A190,#REF!,FALSE) -> 
B191: =_xlfn.CHISQ.DIST(A191,#REF!,FALSE) -> 
B192: =_xlfn.CHISQ.DIST(A192,#REF!,FALSE) -> 
B193: =_xlfn.CHISQ.DIST(A193,#REF!,FALSE) -> 
B194: =_xlfn.CHISQ.DIST(A194,#REF!,FALSE) -> 
B195: =_xlfn.CHISQ.DIST(A195,#REF!,FALSE) -> 
B196: =_xlfn.CHISQ.DIST(A196,#REF!,FALSE) -> 
B197: =_xlfn.CHISQ.DIST(A197,#REF!,FALSE) -> 
B198: =_xlfn.CHISQ.DIST(A198,#REF!,FALSE) -> 
B199: =_xlfn.CHISQ.DIST(A199,#REF!,FALSE) -> 
B200: =_xlfn.CHISQ.DIST(A200,#REF!,FALSE) -> 
B201: =_xlfn.CHISQ.DIST(A201,#REF!,FALSE) ->  | C201: =IF($A201<$D$3,IF($A202>$D$3,MAX($B$9:$B$1009),""),"") ->  | D201: =IF($A201<$D$4,IF($A202>$D$4,MAX($B$9:$B$1009),""),"") -> 
A202: =+A201+$B$4 ->  | B202: =_xlfn.CHISQ.DIST(A202,#REF!,FALSE) -> 
B203: =_xlfn.CHISQ.DIST(A203,#REF!,FALSE) -> 
B204: =_xlfn.CHISQ.DIST(A204,#REF!,FALSE) -> 
B205: =_xlfn.CHISQ.DIST(A205,#REF!,FALSE) -> 
... 804 more rows

Sheet Regressionsanalyse
B1: Forbedringsmuligheder | C1: Opbakning
A2: USA | B2: 75 | C2: 40 | E2: Regressionsanalyse | O2: Tilbage til hovedmenuen
A3: Canada | B3: 75 | C3: 61
A4: Frankrig | B4: 44 | C4: 48
A5: Tyskland | B5: 61 | C5: 56
A6: Grækenland | B6: 24 | C6: 16
A7: Ungarn | B7: 39 | C7: 45
A8: Italien | B8: 32 | C8: 29
A9: Holland | B9: 79 | C9: 64
A10: Polen | B10: 73 | C10: 51
A11: Spanien | B11: 27 | C11: 20
A12: Sverige | B12: 80 | C12: 69
A13: Storbritannien | B13: 61 | C13: 42
A14: Rusland | B14: 46 | C14: 44
A15: Australien | B15: 77 | C15: 59
A16: Indien | B16: 73 | C16: 54
A17: Indonesien | B17: 89 | C17: 65
A18: Japan | B18: 54 | C18: 40
A19: Filippinerne | B19: 89 | C19: 69
A20: Israel | B20: 58 | C20: 56
A21: Tunesien | B21: 48 | C21: 27
A22: Kenya | B22: 67 | C22: 52
A23: Nigeria | B23: 65 | C23: 39
A24: Sydafrika | B24: 65 | C24: 35
A25: Argentina | B25: 45 | C25: 35
A26: Brasilien | B26: 48 | C26: 16
G28: Uafhængig variabel | H28: forbedringsmuligheder af levestandard
G29: Afhængig variabel | H29: opbakningen til demokratiet
G30: Y-akseskæring | H30: =ROUND(IF(B2="","",INTERCEPT(C2:C2522,B2:B2522)),2) -> 3.92
G31: Hældningskoefficient | H31: =ROUND(IF(B2="","",SLOPE(C2:C2522,B2:B2522)),3) -> 0.692
G32: R2 | H32: =ROUND(IF(B2="","",RSQ(C2:C2522,B2:B2522)),3) -> 0.661 | J32: =IF(B2="","",IF($H$32>0.9,"Meget stærk samvariation",IF($H$32>0.8,"Stærk samvariation",IF($H$32>0.5,"Moderat samvariation",IF($H$32>0.3,"Svag samvariation","Ringe samvariation"))))) -> Moderat samvariation
J34: =IF(J32="","","Hvis der er samvariation: er der også en årsagssammenhæng?") -> Hvis der er samvariation: er der også en årsagssammenhæng?
G37: =IF(H31>0,"Da R2 er på "&H32&" betyder det, at "&H28&" kan forklare "&H32*100&" procent af variationen i "&H29&". "&G31&" på "&H31&" viser, at en stigning i "&H28&" på én enhed vil føre til en stigning i "&H29&" på "&H31&" "&I31&" enheder.","Da R2 er på "&H32&" betyder det, at "&H28&" kan forklare "&H32*100&" procent af variationen i "&H29&". "&G31&" på "&H31&" viser, at en stigning i "&H28&" på én enhed vil føre til et fald i "&H29&" på "&-H31&" "&-I31&" enheder.") -> Da R2 er på 0,661 betyder det, at forbedringsmuligheder af levestandard kan forklare 66,1 procent af variationen i opbakningen til demokratiet. Hældningskoefficient på 0,692 viser, at en stigning i forbedringsmuligheder af levestandard på én enhed vil føre til en stigning i opbakningen til demokratiet på 0,692 enheder.
G38: ="De resterende "&100-H32*100&" procent af variationen i "&$H$29&" må forklares med andre faktorer." -> De resterende 33,9 procent af variationen i opbakningen til demokratiet må forklares med andre faktorer.

Sheet Regressionssimulator
A1: R2-simulator
D3: Vælg den ønskede styrke ved at benytte rullefeltet i den grønne celle
A4: X | B4: Y
A5: =RANDBETWEEN(0,100) -> 99 | B5: =IF($G$6="Ingen", 'R-square_help'!A2,Regressionssimulator!A5*'R-square_help'!C2+'R-square_help'!B2) -> 199
A6: =RANDBETWEEN(0,100) -> 91 | B6: =IF($G$6="Ingen", 'R-square_help'!A3,Regressionssimulator!A6*'R-square_help'!C3+'R-square_help'!B3) -> 191 | F6: Styrke | G6: Perfekt | I6: Tilbage til hovedmenuen
A7: 72 | B7: =IF($G$6="Ingen", 'R-square_help'!A4,Regressionssimulator!A7*'R-square_help'!C4+'R-square_help'!B4) -> 172
A8: 11 | B8: =IF($G$6="Ingen", 'R-square_help'!A5,Regressionssimulator!A8*'R-square_help'!C5+'R-square_help'!B5) -> 111 | F8: ="Korrelationskoefficient = "&ROUND(CORREL(A4:A104,B4:B104),3) -> Korrelationskoefficient = 1
A9: 43 | B9: =IF($G$6="Ingen", 'R-square_help'!A6,Regressionssimulator!A9*'R-square_help'!C6+'R-square_help'!B6) -> 143
A10: 90 | B10: =IF($G$6="Ingen", 'R-square_help'!A7,Regressionssimulator!A10*'R-square_help'!C7+'R-square_help'!B7) -> 190
A11: 10 | B11: =IF($G$6="Ingen", 'R-square_help'!A8,Regressionssimulator!A11*'R-square_help'!C8+'R-square_help'!B8) -> 110
A12: 98 | B12: =IF($G$6="Ingen", 'R-square_help'!A9,Regressionssimulator!A12*'R-square_help'!C9+'R-square_help'!B9) -> 198
A13: 98 | B13: =IF($G$6="Ingen", 'R-square_help'!A10,Regressionssimulator!A13*'R-square_help'!C10+'R-square_help'!B10) -> 198
A14: 65 | B14: =IF($G$6="Ingen", 'R-square_help'!A11,Regressionssimulator!A14*'R-square_help'!C11+'R-square_help'!B11) -> 165
A15: 53 | B15: =IF($G$6="Ingen", 'R-square_help'!A12,Regressionssimulator!A15*'R-square_help'!C12+'R-square_help'!B12) -> 153
A16: 62 | B16: =IF($G$6="Ingen", 'R-square_help'!A13,Regressionssimulator!A16*'R-square_help'!C13+'R-square_help'!B13) -> 162
A17: 59 | B17: =IF($G$6="Ingen", 'R-square_help'!A14,Regressionssimulator!A17*'R-square_help'!C14+'R-square_help'!B14) -> 159
A18: 65 | B18: =IF($G$6="Ingen", 'R-square_help'!A15,Regressionssimulator!A18*'R-square_help'!C15+'R-square_help'!B15) -> 165
A19: 63 | B19: =IF($G$6="Ingen", 'R-square_help'!A16,Regressionssimulator!A19*'R-square_help'!C16+'R-square_help'!B16) -> 163
A20: 31 | B20: =IF($G$6="Ingen", 'R-square_help'!A17,Regressionssimulator!A20*'R-square_help'!C17+'R-square_help'!B17) -> 131
A21: 17 | B21: =IF($G$6="Ingen", 'R-square_help'!A18,Regressionssimulator!A21*'R-square_help'!C18+'R-square_help'!B18) -> 117
A22: 49 | B22: =IF($G$6="Ingen", 'R-square_help'!A19,Regressionssimulator!A22*'R-square_help'!C19+'R-square_help'!B19) -> 149
A23: 96 | B23: =IF($G$6="Ingen", 'R-square_help'!A20,Regressionssimulator!A23*'R-square_help'!C20+'R-square_help'!B20) -> 196
A24: 13 | B24: =IF($G$6="Ingen", 'R-square_help'!A21,Regressionssimulator!A24*'R-square_help'!C21+'R-square_help'!B21) -> 113
A25: 86 | B25: =IF($G$6="Ingen", 'R-square_help'!A22,Regressionssimulator!A25*'R-square_help'!C22+'R-square_help'!B22) -> 186
A26: 66 | B26: =IF($G$6="Ingen", 'R-square_help'!A23,Regressionssimulator!A26*'R-square_help'!C23+'R-square_help'!B23) -> 166
A27: 96 | B27: =IF($G$6="Ingen", 'R-square_help'!A24,Regressionssimulator!A27*'R-square_help'!C24+'R-square_help'!B24) -> 196
A28: 81 | B28: =IF($G$6="Ingen", 'R-square_help'!A25,Regressionssimulator!A28*'R-square_help'!C25+'R-square_help'!B25) -> 181
A29: 64 | B29: =IF($G$6="Ingen", 'R-square_help'!A26,Regressionssimulator!A29*'R-square_help'!C26+'R-square_help'!B26) -> 164
A30: 73 | B30: =IF($G$6="Ingen", 'R-square_help'!A27,Regressionssimulator!A30*'R-square_help'!C27+'R-square_help'!B27) -> 173
A31: 73 | B31: =IF($G$6="Ingen", 'R-square_help'!A28,Regressionssimulator!A31*'R-square_help'!C28+'R-square_help'!B28) -> 173
A32: 68 | B32: =IF($G$6="Ingen", 'R-square_help'!A29,Regressionssimulator!A32*'R-square_help'!C29+'R-square_help'!B29) -> 168
A33: 14 | B33: =IF($G$6="Ingen", 'R-square_help'!A30,Regressionssimulator!A33*'R-square_help'!C30+'R-square_help'!B30) -> 114
A34: 71 | B34: =IF($G$6="Ingen", 'R-square_help'!A31,Regressionssimulator!A34*'R-square_help'!C31+'R-square_help'!B31) -> 171
A35: 62 | B35: =IF($G$6="Ingen", 'R-square_help'!A32,Regressionssimulator!A35*'R-square_help'!C32+'R-square_help'!B32) -> 162
A36: 29 | B36: =IF($G$6="Ingen", 'R-square_help'!A33,Regressionssimulator!A36*'R-square_help'!C33+'R-square_help'!B33) -> 129
A37: 94 | B37: =IF($G$6="Ingen", 'R-square_help'!A34,Regressionssimulator!A37*'R-square_help'!C34+'R-square_help'!B34) -> 194
A38: 28 | B38: =IF($G$6="Ingen", 'R-square_help'!A35,Regressionssimulator!A38*'R-square_help'!C35+'R-square_help'!B35) -> 128
A39: 77 | B39: =IF($G$6="Ingen", 'R-square_help'!A36,Regressionssimulator!A39*'R-square_help'!C36+'R-square_help'!B36) -> 177
A40: 64 | B40: =IF($G$6="Ingen", 'R-square_help'!A37,Regressionssimulator!A40*'R-square_help'!C37+'R-square_help'!B37) -> 164
A41: 43 | B41: =IF($G$6="Ingen", 'R-square_help'!A38,Regressionssimulator!A41*'R-square_help'!C38+'R-square_help'!B38) -> 143
A42: 52 | B42: =IF($G$6="Ingen", 'R-square_help'!A39,Regressionssimulator!A42*'R-square_help'!C39+'R-square_help'!B39) -> 152
A43: 2 | B43: =IF($G$6="Ingen", 'R-square_help'!A40,Regressionssimulator!A43*'R-square_help'!C40+'R-square_help'!B40) -> 102
A44: 24 | B44: =IF($G$6="Ingen", 'R-square_help'!A41,Regressionssimulator!A44*'R-square_help'!C41+'R-square_help'!B41) -> 124
A45: 9 | B45: =IF($G$6="Ingen", 'R-square_help'!A42,Regressionssimulator!A45*'R-square_help'!C42+'R-square_help'!B42) -> 109
A46: 20 | B46: =IF($G$6="Ingen", 'R-square_help'!A43,Regressionssimulator!A46*'R-square_help'!C43+'R-square_help'!B43) -> 120
A47: 80 | B47: =IF($G$6="Ingen", 'R-square_help'!A44,Regressionssimulator!A47*'R-square_help'!C44+'R-square_help'!B44) -> 180
A48: 31 | B48: =IF($G$6="Ingen", 'R-square_help'!A45,Regressionssimulator!A48*'R-square_help'!C45+'R-square_help'!B45) -> 131
A49: 0 | B49: =IF($G$6="Ingen", 'R-square_help'!A46,Regressionssimulator!A49*'R-square_help'!C46+'R-square_help'!B46) -> 100
A50: 27 | B50: =IF($G$6="Ingen", 'R-square_help'!A47,Regressionssimulator!A50*'R-square_help'!C47+'R-square_help'!B47) -> 127
A51: 26 | B51: =IF($G$6="Ingen", 'R-square_help'!A48,Regressionssimulator!A51*'R-square_help'!C48+'R-square_help'!B48) -> 126
A52: 19 | B52: =IF($G$6="Ingen", 'R-square_help'!A49,Regressionssimulator!A52*'R-square_help'!C49+'R-square_help'!B49) -> 119
A53: 37 | B53: =IF($G$6="Ingen", 'R-square_help'!A50,Regressionssimulator!A53*'R-square_help'!C50+'R-square_help'!B50) -> 137
A54: 37 | B54: =IF($G$6="Ingen", 'R-square_help'!A51,Regressionssimulator!A54*'R-square_help'!C51+'R-square_help'!B51) -> 137
A55: 21 | B55: =IF($G$6="Ingen", 'R-square_help'!A52,Regressionssimulator!A55*'R-square_help'!C52+'R-square_help'!B52) -> 121
A56: 63 | B56: =IF($G$6="Ingen", 'R-square_help'!A53,Regressionssimulator!A56*'R-square_help'!C53+'R-square_help'!B53) -> 163
A57: 32 | B57: =IF($G$6="Ingen", 'R-square_help'!A54,Regressionssimulator!A57*'R-square_help'!C54+'R-square_help'!B54) -> 132
A58: 44 | B58: =IF($G$6="Ingen", 'R-square_help'!A55,Regressionssimulator!A58*'R-square_help'!C55+'R-square_help'!B55) -> 144
A59: 76 | B59: =IF($G$6="Ingen", 'R-square_help'!A56,Regressionssimulator!A59*'R-square_help'!C56+'R-square_help'!B56) -> 176
A60: 70 | B60: =IF($G$6="Ingen", 'R-square_help'!A57,Regressionssimulator!A60*'R-square_help'!C57+'R-square_help'!B57) -> 170
A61: 88 | B61: =IF($G$6="Ingen", 'R-square_help'!A58,Regressionssimulator!A61*'R-square_help'!C58+'R-square_help'!B58) -> 188
A62: 12 | B62: =IF($G$6="Ingen", 'R-square_help'!A59,Regressionssimulator!A62*'R-square_help'!C59+'R-square_help'!B59) -> 112
A63: 42 | B63: =IF($G$6="Ingen", 'R-square_help'!A60,Regressionssimulator!A63*'R-square_help'!C60+'R-square_help'!B60) -> 142
A64: 64 | B64: =IF($G$6="Ingen", 'R-square_help'!A61,Regressionssimulator!A64*'R-square_help'!C61+'R-square_help'!B61) -> 164
A65: 21 | B65: =IF($G$6="Ingen", 'R-square_help'!A62,Regressionssimulator!A65*'R-square_help'!C62+'R-square_help'!B62) -> 121
A66: 31 | B66: =IF($G$6="Ingen", 'R-square_help'!A63,Regressionssimulator!A66*'R-square_help'!C63+'R-square_help'!B63) -> 131
A67: 43 | B67: =IF($G$6="Ingen", 'R-square_help'!A64,Regressionssimulator!A67*'R-square_help'!C64+'R-square_help'!B64) -> 143
A68: 20 | B68: =IF($G$6="Ingen", 'R-square_help'!A65,Regressionssimulator!A68*'R-square_help'!C65+'R-square_help'!B65) -> 120
A69: 56 | B69: =IF($G$6="Ingen", 'R-square_help'!A66,Regressionssimulator!A69*'R-square_help'!C66+'R-square_help'!B66) -> 156
A70: =RANDBETWEEN(0,100) -> 34 | B70: =IF($G$6="Ingen", 'R-square_help'!A67,Regressionssimulator!A70*'R-square_help'!C67+'R-square_help'!B67) -> 134
A71: 5 | B71: =IF($G$6="Ingen", 'R-square_help'!A68,Regressionssimulator!A71*'R-square_help'!C68+'R-square_help'!B68) -> 105
A72: 99 | B72: =IF($G$6="Ingen", 'R-square_help'!A69,Regressionssimulator!A72*'R-square_help'!C69+'R-square_help'!B69) -> 199
A73: 3 | B73: =IF($G$6="Ingen", 'R-square_help'!A70,Regressionssimulator!A73*'R-square_help'!C70+'R-square_help'!B70) -> 103
A74: 47 | B74: =IF($G$6="Ingen", 'R-square_help'!A71,Regressionssimulator!A74*'R-square_help'!C71+'R-square_help'!B71) -> 147
A75: 2 | B75: =IF($G$6="Ingen", 'R-square_help'!A72,Regressionssimulator!A75*'R-square_help'!C72+'R-square_help'!B72) -> 102
A76: 48 | B76: =IF($G$6="Ingen", 'R-square_help'!A73,Regressionssimulator!A76*'R-square_help'!C73+'R-square_help'!B73) -> 148
A77: 59 | B77: =IF($G$6="Ingen", 'R-square_help'!A74,Regressionssimulator!A77*'R-square_help'!C74+'R-square_help'!B74) -> 159
A78: 56 | B78: =IF($G$6="Ingen", 'R-square_help'!A75,Regressionssimulator!A78*'R-square_help'!C75+'R-square_help'!B75) -> 156
A79: 84 | B79: =IF($G$6="Ingen", 'R-square_help'!A76,Regressionssimulator!A79*'R-square_help'!C76+'R-square_help'!B76) -> 184
A80: 30 | B80: =IF($G$6="Ingen", 'R-square_help'!A77,Regressionssimulator!A80*'R-square_help'!C77+'R-square_help'!B77) -> 130
A81: 43 | B81: =IF($G$6="Ingen", 'R-square_help'!A78,Regressionssimulator!A81*'R-square_help'!C78+'R-square_help'!B78) -> 143
A82: 100 | B82: =IF($G$6="Ingen", 'R-square_help'!A79,Regressionssimulator!A82*'R-square_help'!C79+'R-square_help'!B79) -> 200
A83: 27 | B83: =IF($G$6="Ingen", 'R-square_help'!A80,Regressionssimulator!A83*'R-square_help'!C80+'R-square_help'!B80) -> 127
A84: 23 | B84: =IF($G$6="Ingen", 'R-square_help'!A81,Regressionssimulator!A84*'R-square_help'!C81+'R-square_help'!B81) -> 123
A85: 21 | B85: =IF($G$6="Ingen", 'R-square_help'!A82,Regressionssimulator!A85*'R-square_help'!C82+'R-square_help'!B82) -> 121
A86: 95 | B86: =IF($G$6="Ingen", 'R-square_help'!A83,Regressionssimulator!A86*'R-square_help'!C83+'R-square_help'!B83) -> 195
A87: 58 | B87: =IF($G$6="Ingen", 'R-square_help'!A84,Regressionssimulator!A87*'R-square_help'!C84+'R-square_help'!B84) -> 158
A88: 52 | B88: =IF($G$6="Ingen", 'R-square_help'!A85,Regressionssimulator!A88*'R-square_help'!C85+'R-square_help'!B85) -> 152
A89: 77 | B89: =IF($G$6="Ingen", 'R-square_help'!A86,Regressionssimulator!A89*'R-square_help'!C86+'R-square_help'!B86) -> 177
A90: 65 | B90: =IF($G$6="Ingen", 'R-square_help'!A87,Regressionssimulator!A90*'R-square_help'!C87+'R-square_help'!B87) -> 165
A91: 76 | B91: =IF($G$6="Ingen", 'R-square_help'!A88,Regressionssimulator!A91*'R-square_help'!C88+'R-square_help'!B88) -> 176
A92: 47 | B92: =IF($G$6="Ingen", 'R-square_help'!A89,Regressionssimulator!A92*'R-square_help'!C89+'R-square_help'!B89) -> 147
A93: 28 | B93: =IF($G$6="Ingen", 'R-square_help'!A90,Regressionssimulator!A93*'R-square_help'!C90+'R-square_help'!B90) -> 128
A94: 2 | B94: =IF($G$6="Ingen", 'R-square_help'!A91,Regressionssimulator!A94*'R-square_help'!C91+'R-square_help'!B91) -> 102
A95: 86 | B95: =IF($G$6="Ingen", 'R-square_help'!A92,Regressionssimulator!A95*'R-square_help'!C92+'R-square_help'!B92) -> 186
A96: 22 | B96: =IF($G$6="Ingen", 'R-square_help'!A93,Regressionssimulator!A96*'R-square_help'!C93+'R-square_help'!B93) -> 122
A97: 73 | B97: =IF($G$6="Ingen", 'R-square_help'!A94,Regressionssimulator!A97*'R-square_help'!C94+'R-square_help'!B94) -> 173
A98: 10 | B98: =IF($G$6="Ingen", 'R-square_help'!A95,Regressionssimulator!A98*'R-square_help'!C95+'R-square_help'!B95) -> 110
A99: 62 | B99: =IF($G$6="Ingen", 'R-square_help'!A96,Regressionssimulator!A99*'R-square_help'!C96+'R-square_help'!B96) -> 162
A100: 26 | B100: =IF($G$6="Ingen", 'R-square_help'!A97,Regressionssimulator!A100*'R-square_help'!C97+'R-square_help'!B97) -> 126
A101: 24 | B101: =IF($G$6="Ingen", 'R-square_help'!A98,Regressionssimulator!A101*'R-square_help'!C98+'R-square_help'!B98) -> 124
A102: 48 | B102: =IF($G$6="Ingen", 'R-square_help'!A99,Regressionssimulator!A102*'R-square_help'!C99+'R-square_help'!B99) -> 148
A103: 46 | B103: =IF($G$6="Ingen", 'R-square_help'!A100,Regressionssimulator!A103*'R-square_help'!C100+'R-square_help'!B100) -> 146
A104: 49 | B104: =IF($G$6="Ingen", 'R-square_help'!A101,Regressionssimulator!A104*'R-square_help'!C101+'R-square_help'!B101) -> 149

Sheet R-square_help (hidden)
A1: Random | B1: Skæring | C1: Hældning | F1: Skæring | G1: Hældning
A2: =RANDBETWEEN(0,100) -> 16 | B2: =RANDBETWEEN($F$2,$F$3) -> 100 | C2: =RANDBETWEEN($G$2,$G$3)/100 -> 1 | F2: =VLOOKUP(Regressionssimulator!$G$6,'R-square_help'!$F$8:$G$11,2,FALSE) -> 100 | G2: =IF(Regressionssimulator!$G$6="Perfekt",100,90) -> 100
A3: =RANDBETWEEN(0,100) -> 40 | B3: =RANDBETWEEN($F$2,$F$3) -> 100 | C3: =RANDBETWEEN($G$2,$G$3)/100 -> 1 | F3: 100 | G3: 100
A4: 36 | B4: 100 | C4: 1
A5: 40 | B5: 100 | C5: 1
A6: 35 | B6: 100 | C6: 1
A7: 7 | B7: 100 | C7: 1 | F7: Ingen | G7: 0
A8: 83 | B8: 100 | C8: 1 | F8: Svag | G8: -40
A9: 48 | B9: 100 | C9: 1 | F9: Moderat | G9: 50
A10: 74 | B10: 100 | C10: 1 | F10: Stærk | G10: 90
A11: 63 | B11: 100 | C11: 1 | F11: Perfekt | G11: 100
A12: 35 | B12: 100 | C12: 1
A13: 49 | B13: 100 | C13: 1
A14: 10 | B14: 100 | C14: 1
A15: 7 | B15: 100 | C15: 1
A16: 46 | B16: 100 | C16: 1
A17: 62 | B17: 100 | C17: 1
A18: 20 | B18: 100 | C18: 1
A19: 40 | B19: 100 | C19: 1
A20: 16 | B20: 100 | C20: 1
A21: 52 | B21: 100 | C21: 1
A22: 34 | B22: 100 | C22: 1
A23: 46 | B23: 100 | C23: 1
A24: 26 | B24: 100 | C24: 1
A25: 96 | B25: 100 | C25: 1
A26: 35 | B26: 100 | C26: 1
A27: 90 | B27: 100 | C27: 1
A28: 46 | B28: 100 | C28: 1
A29: 61 | B29: 100 | C29: 1
A30: 51 | B30: 100 | C30: 1
A31: 62 | B31: 100 | C31: 1
A32: 1 | B32: 100 | C32: 1
A33: 32 | B33: 100 | C33: 1
A34: 20 | B34: 100 | C34: 1
A35: 18 | B35: 100 | C35: 1
A36: 97 | B36: 100 | C36: 1
A37: 36 | B37: 100 | C37: 1
A38: 5 | B38: 100 | C38: 1
A39: 7 | B39: 100 | C39: 1
A40: 84 | B40: 100 | C40: 1
A41: 25 | B41: 100 | C41: 1
A42: 84 | B42: 100 | C42: 1
A43: 30 | B43: 100 | C43: 1
A44: 64 | B44: 100 | C44: 1
A45: 93 | B45: 100 | C45: 1
A46: 36 | B46: 100 | C46: 1
A47: 46 | B47: 100 | C47: 1
A48: 3 | B48: 100 | C48: 1
A49: 82 | B49: 100 | C49: 1
A50: 19 | B50: 100 | C50: 1
A51: 5 | B51: 100 | C51: 1
A52: 80 | B52: 100 | C52: 1
A53: 41 | B53: 100 | C53: 1
A54: 88 | B54: 100 | C54: 1
A55: 97 | B55: 100 | C55: 1
A56: 24 | B56: 100 | C56: 1
A57: 24 | B57: 100 | C57: 1
A58: 12 | B58: 100 | C58: 1
A59: 18 | B59: 100 | C59: 1
A60: 38 | B60: 100 | C60: 1
A61: 66 | B61: 100 | C61: 1
A62: 19 | B62: 100 | C62: 1
A63: 55 | B63: 100 | C63: 1
A64: 52 | B64: 100 | C64: 1
A65: 2 | B65: 100 | C65: 1
A66: 66 | B66: 100 | C66: 1
A67: =RANDBETWEEN(0,100) -> 71 | B67: =RANDBETWEEN($F$2,$F$3) -> 100 | C67: =RANDBETWEEN($G$2,$G$3)/100 -> 1
A68: 18 | B68: 100 | C68: 1
A69: 15 | B69: 100 | C69: 1
A70: 8 | B70: 100 | C70: 1
A71: 64 | B71: 100 | C71: 1
A72: 2 | B72: 100 | C72: 1
A73: 23 | B73: 100 | C73: 1
A74: 36 | B74: 100 | C74: 1
A75: 0 | B75: 100 | C75: 1
A76: 88 | B76: 100 | C76: 1
A77: 8 | B77: 100 | C77: 1
A78: 30 | B78: 100 | C78: 1
A79: 67 | B79: 100 | C79: 1
A80: 63 | B80: 100 | C80: 1
A81: 68 | B81: 100 | C81: 1
A82: 31 | B82: 100 | C82: 1
A83: 70 | B83: 100 | C83: 1
A84: 75 | B84: 100 | C84: 1
A85: 9 | B85: 100 | C85: 1
A86: 88 | B86: 100 | C86: 1
A87: 6 | B87: 100 | C87: 1
A88: 32 | B88: 100 | C88: 1
A89: 24 | B89: 100 | C89: 1
A90: 23 | B90: 100 | C90: 1
A91: 45 | B91: 100 | C91: 1
A92: 88 | B92: 100 | C92: 1
A93: 4 | B93: 100 | C93: 1
A94: 6 | B94: 100 | C94: 1
A95: 24 | B95: 100 | C95: 1
A96: 88 | B96: 100 | C96: 1
A97: 93 | B97: 100 | C97: 1
A98: 66 | B98: 100 | C98: 1
A99: 90 | B99: 100 | C99: 1
A100: 28 | B100: 100 | C100: 1
A101: 79 | B101: 100 | C101: 1
